fUST/lending_fUST_20240611
["ID","MTS","AMOUNT","RATE_DAILY","PERIOD"]
[329087336,1718094648653,-500.0,0.00022465,2]
[329087337,1718094648663,-500.0,0.00022465,2]
[329087338,1718094648673,-508.2773343,0.00022465,2]
[329087339,1718094648683,-510.95659183,0.00022465,2]
[329087340,1718094648694,-503.85875661,0.00022465,2]
[329087341,1718094648704,-500.0,0.00022465,2]
[329087342,1718094648714,-500.0,0.00022465,2]
[329087343,1718094648725,-500.0,0.00022465,2]
[329087344,1718094648735,-500.0,0.00022465,2]
[329087345,1718094648746,-500.0,0.00022465,2]
[329087346,1718094648756,-500.0,0.00022465,2]
[329087347,1718094648766,-500.0,0.00022465,2]
[329087348,1718094648776,-500.0,0.00022465,2]
[329087349,1718094648787,-500.0,0.00022465,2]
[329087350,1718094648797,-259.26556618,0.00022465,2]
[329087351,1718094648808,-500.0,0.00022465,2]
[329087352,1718094648818,-500.0,0.00022465,2]
[329087353,1718094648829,-500.0,0.00022465,2]
[329087354,1718094648841,-500.0,0.00022465,2]
[329087355,1718094648852,-452.93217764,0.00022465,2]
[329087356,1718094648867,-500.0,0.00022465,2]
[329087357,1718094648890,-500.0,0.00022465,2]
[329087358,1718094648916,-500.0,0.00022465,2]
[329087359,1718094648941,-518.51246658,0.00022465,2]
[329087360,1718094648970,-500.0,0.00022465,2]
[329087361,1718094648999,-500.0,0.00022465,2]
[329087362,1718094649030,-500.0,0.00022465,2]
[329087363,1718094649056,-1191.0,0.00022465,2]
[329087364,1718094649070,-500.0,0.00022465,2]
[329087365,1718094649081,-503.40385846,0.00022465,2]
[329087366,1718094649096,-500.0,0.00022465,2]
[329087367,1718094649107,-500.0,0.00022465,2]
[329087368,1718094649119,-416.54267152,0.00022465,2]
[329087369,1718094649131,-1250.16,0.00022465,2]
[329087370,1718094649141,-155.845432,0.00022465,2]
[329087371,1718094649152,-506.84292524,0.00022465,2]
[329087372,1718094649163,-155.845432,0.00022465,2]
[329087373,1718094649175,-500.0,0.00022465,2]
[329087374,1718094649185,-515.80793677,0.00022465,2]
[329087375,1718094649202,-500.0,0.00022465,2]
[329087376,1718094649212,-500.0,0.00022465,2]
[329087377,1718094649224,-500.0,0.00022465,2]
[329087378,1718094649234,-675.13,0.00022465,2]
[329087379,1718094649245,-500.0,0.00022465,2]
[329087380,1718094649256,-429.0637712,0.00022465,2]
[329087381,1718094649266,-500.0,0.00022465,2]
[329087382,1718094649276,-500.0,0.00022465,2]
[329087383,1718094649287,-646.53,0.00022465,2]
[329087384,1718094649297,-262.12126567,0.00022465,2]
[329087385,1718094649307,-500.0,0.00022465,2]
[329087386,1718094649318,-500.0,0.00022465,2]
[329087387,1718094649328,-500.0,0.00022465,2]
[329087388,1718094649338,-500.0,0.00022465,2]
[329087389,1718094649349,-500.0,0.00022465,2]
[329087390,1718094649359,-500.0,0.00022465,2]
[329087391,1718094649370,-500.0,0.00022465,2]
[329087392,1718094649380,-500.0,0.00022465,2]
[329087393,1718094649391,-500.0,0.00022465,2]
[329087394,1718094649402,-500.0,0.00022465,2]
[329087395,1718094649412,-2638.79,0.00022465,2]
[329087396,1718094649422,-500.0,0.00022465,2]
[329087397,1718094649433,-16164.8,0.00022465,2]
[329087398,1718094649444,-500.0,0.00022465,2]
[329087399,1718094649454,-500.0,0.00022465,2]
[329087400,1718094649464,-500.0,0.00022465,2]
[329087401,1718094649475,-504.56734209,0.00022465,2]
[329087402,1718094649485,-238.2832711,0.00022465,2]
[329087403,1718094649495,-500.0,0.00022465,2]
[329087404,1718094649506,-1776.7,0.00022465,2]
[329087405,1718094649516,-209.680811,0.00022465,2]
[329087406,1718094649526,-500.0,0.00022465,2]
[329087407,1718094649537,-209.680811,0.00022465,2]
[329087408,1718094649547,-718.31,0.00022465,2]
[329087409,1718094649558,-500.0,0.00022465,2]
[329087410,1718094649569,-209.680811,0.00022465,2]
[329087411,1718094649579,-209.680811,0.00022465,2]
[329087412,1718094649590,-504.08130323,0.00022465,2]
[329087413,1718094649601,-500.0,0.00022465,2]
[329087414,1718094649612,-151.0,0.00022465,2]
[329087415,1718094649622,-151.0,0.00022465,2]
[329087416,1718094649632,-151.0,0.00022465,2]
[329087417,1718094649643,-500.0,0.00022465,2]
[329087418,1718094649653,-1835.48,0.00022465,2]
[329087419,1718094649664,-500.0,0.00022465,2]
[329087420,1718094649674,-500.0,0.00022465,2]
[329087421,1718094649685,-500.0,0.00022465,2]
[329087422,1718094649695,-500.0,0.00022465,2]
[329087423,1718094649706,-508.89831846,0.00022465,2]
[329087424,1718094649716,-500.0,0.00022465,2]
[329087425,1718094649727,-500.0,0.00022465,2]
[329087426,1718094649738,-500.0,0.00022465,2]
[329087427,1718094649748,-500.0,0.00022465,2]
[329087428,1718094649759,-500.0,0.00022465,2]
[329087429,1718094649769,-500.0,0.00022465,2]
[329087430,1718094649779,-2456.5,0.00022465,2]
[329087431,1718094649790,-505.92783357,0.00022465,2]
[329087432,1718094649800,-500.0,0.00022465,2]
[329087433,1718094649810,-500.0,0.00022465,2]
[329087434,1718094649821,-289.68521563,0.00022465,2]
[329087435,1718094649831,-505.55114002,0.00022465,2]
[329087436,1718094649841,-500.0,0.00022465,2]
[329087437,1718094649852,-500.0,0.00022465,2]
[329087438,1718094649863,-500.0,0.00022465,2]
[329087439,1718094649873,-500.0,0.00022465,2]
[329087440,1718094649883,-500.0,0.00022465,2]
[329087441,1718094649894,-500.0,0.00022465,2]
[329087442,1718094649904,-939.3,0.00022465,2]
[329087443,1718094649917,-500.0,0.00022465,2]
[329087444,1718094649927,-500.0,0.00022465,2]
[329087445,1718094649938,-151.0,0.00022465,2]
[329087446,1718094649948,-151.0,0.00022465,2]
[329087447,1718094649959,-151.0,0.00022465,2]
[329087448,1718094649970,-500.75378772,0.00022465,2]
[329087449,1718094649980,-500.0,0.00022465,2]
[329087450,1718094649991,-500.0,0.00022465,2]
[329087451,1718094650001,-504.74386643,0.00022465,2]
[329087452,1718094650012,-151.0,0.00022465,2]
[329087453,1718094650022,-552.32294094,0.00022465,2]
[329087454,1718094650032,-151.0,0.00022465,2]
[329087455,1718094650042,-151.0,0.00022465,2]
[329087456,1718094650052,-500.0,0.00022465,2]
[329087457,1718094650063,-500.0,0.00022465,2]
[329087458,1718094650074,-500.0,0.00022465,2]
[329087459,1718094650085,-500.0,0.00022465,2]
[329087460,1718094650100,-500.0,0.00022465,2]
[329087461,1718094650110,-500.0,0.00022465,2]
[329087462,1718094650121,-500.0,0.00022465,2]
[329087463,1718094650132,-500.0,0.00022465,2]
[329087464,1718094650143,-500.0,0.00022465,2]
[329087465,1718094650154,-500.0,0.00022465,2]
[329087466,1718094650165,-500.0,0.00022465,2]
[329087467,1718094650178,-1556.25,0.00022465,2]
[329087468,1718094650190,-500.0,0.00022465,2]
[329087469,1718094650210,-500.0,0.00022465,2]
[329087470,1718094650221,-502.97180149,0.00022465,2]
[329087471,1718094650232,-507.026839,0.00022465,2]
[329087472,1718094650335,-507.026839,0.00022465,2]
[329087473,1718094650345,-507.026839,0.00022465,2]
[329087474,1718094650356,-500.0,0.00022465,2]
[329087475,1718094650368,-500.0,0.00022465,2]
[329087476,1718094650382,-507.026839,0.00022465,2]
[329087477,1718094650392,-507.026839,0.00022465,2]
[329087478,1718094650403,-507.026838,0.00022465,2]
[329087479,1718094650413,-516.16786453,0.00022465,2]
[329087480,1718094650423,-500.0,0.00022465,2]
[329087481,1718094650433,-500.0,0.00022465,2]
[329087482,1718094650443,-151.03020604,0.00022568,2]
[329087483,1718094650454,-500.0,0.00022688,2]
[329087484,1718094650464,-382.74222411,0.00022738,2]
[329087485,1718094650474,-500.0,0.00022738,2]
[329087486,1718094650484,-1637.82,0.00022738,2]
[329087487,1718094650495,-500.0,0.00022738,2]
[329087488,1718094650505,-500.0,0.00022738,2]
[329087489,1718094650515,-500.0,0.00022738,2]
[329087490,1718094650526,-500.0,0.00022739,2]
[329087491,1718094650537,-508.02790547,0.00022739,2]
[329087492,1718094650548,-500.0,0.00022739,2]
[329087493,1718094650558,-524.38823343,0.00022739,2]
[329087494,1718094650569,-500.0,0.00022739,2]
[329087495,1718094650579,-500.0,0.00022739,2]
[329087496,1718094650590,-521.32724151,0.00022739,2]
[329087497,1718094650600,-500.0,0.00022739,2]
[329087498,1718094650611,-500.0,0.00022739,2]
[329087499,1718094650622,-500.0,0.00022739,2]
[329087500,1718094650632,-500.0,0.00022739,2]
[329087501,1718094650643,-500.0,0.00022739,2]
[329087502,1718094650654,-500.0,0.00022739,2]
[329087503,1718094650664,-500.0,0.00022739,2]
[329087504,1718094650675,-500.0,0.00022739,2]
[329087505,1718094650685,-500.0,0.00022739,2]
[329087506,1718094650696,-500.0,0.00022739,2]
[329087507,1718094650706,-500.0,0.00022739,2]
[329087508,1718094650716,-500.0,0.00022739,2]
[329087509,1718094650726,-500.0,0.00022739,2]
[329087510,1718094650738,-512.44100978,0.00022739,2]
[329087511,1718094650748,-375.78290569,0.00022739,2]
[329087512,1718094650758,-450.92072188,0.00022739,2]
[329087513,1718094650768,-500.0,0.00022739,2]
[329087514,1718094650779,-510.44688316,0.00022739,2]
[329087515,1718094650790,-505.29367401,0.00022739,2]
[329087516,1718094650800,-500.0,0.00022739,2]
[329087517,1718094650810,-500.0,0.00022739,2]
[329087518,1718094650821,-500.0,0.00022739,2]
[329087519,1718094650832,-500.0,0.00022739,2]
[329087520,1718094650843,-500.0,0.00022739,2]
[329087521,1718094650853,-500.0,0.00022739,2]
[329087522,1718094650864,-500.0,0.00022739,2]
[329087523,1718094650874,-509.028052,0.00022739,2]
[329087524,1718094650885,-500.0,0.00022739,2]
[329087525,1718094650895,-500.0,0.00022739,2]
[329087526,1718094650906,-500.0,0.00022739,2]
[329087527,1718094650916,-510.09513335,0.00022739,2]
[329087528,1718094650926,-500.0,0.00022739,2]
[329087529,1718094650936,-500.0,0.00022739,2]
[329087530,1718094650946,-410.08212088,0.00022739,2]
[329087531,1718094650956,-635.84036901,0.00022739,2]
[329087532,1718094650966,-500.0,0.00022739,2]
[329087533,1718094650977,-500.0,0.00022739,2]
[329087534,1718094650988,-500.0,0.00022739,2]
[329087535,1718094650997,-508.83741881,0.00022739,2]
[329087536,1718094651007,-1191.0,0.00022739,2]
[329087537,1718094651017,-511.10509085,0.00022739,2]
[329087538,1718094651027,-500.0,0.00022739,2]
[329087539,1718094651036,-1250.16,0.00022739,2]
[329087540,1718094651046,-155.845432,0.00022739,2]
[329087541,1718094651056,-155.845432,0.00022739,2]
[329087542,1718094651067,-155.845432,0.00022739,2]
[329087543,1718094651077,-155.845432,0.00022739,2]
[329087544,1718094651087,-500.0,0.00022739,2]
[329087545,1718094651101,-500.0,0.00022739,2]
[329087546,1718094651111,-516.74917005,0.00022739,2]
[329087547,1718094651121,-500.0,0.00022739,2]
[329087548,1718094651131,-675.13,0.00022739,2]
[329087549,1718094651141,-500.0,0.00022739,2]
[329087550,1718094651150,-500.0,0.00022739,2]
[329087551,1718094651161,-500.0,0.00022739,2]
[329087552,1718094651172,-646.53,0.00022739,2]
[329087553,1718094651182,-500.0,0.00022739,2]
[329087554,1718094651197,-500.0,0.00022739,2]
[329087555,1718094651207,-500.0,0.00022739,2]
[329087556,1718094651217,-500.0,0.00022739,2]
[329087557,1718094651226,-500.0,0.00022739,2]
[329087558,1718094651236,-500.0,0.00022739,2]
[329087559,1718094651247,-500.0,0.00022739,2]
[329087560,1718094651257,-500.0,0.00022739,2]
[329087561,1718094651269,-500.0,0.00022739,2]
[329087562,1718094651279,-500.0,0.00022739,2]
[329087563,1718094651291,-2638.79,0.00022739,2]
[329087564,1718094651302,-500.0,0.00022739,2]
[329087565,1718094651311,-16164.8,0.00022739,2]
[329087566,1718094651322,-500.0,0.00022739,2]
[329087567,1718094651332,-500.0,0.00022739,2]
[329087568,1718094651344,-500.0,0.00022739,2]
[329087569,1718094651354,-1776.7,0.00022739,2]
[329087570,1718094651366,-500.0,0.00022739,2]
[329087571,1718094651376,-718.31,0.00022739,2]
[329087572,1718094651387,-500.0,0.00022739,2]
[329087573,1718094651397,-500.0,0.00022739,2]
[329087574,1718094651407,-500.0,0.00022739,2]
[329087575,1718094651418,-1835.48,0.00022739,2]
[329087576,1718094651428,-500.0,0.00022739,2]
[329087577,1718094651438,-500.0,0.00022739,2]
[329087578,1718094651448,-500.0,0.00022739,2]
[329087579,1718094651458,-500.0,0.00022739,2]
[329087580,1718094651468,-505.5921389,0.00022739,2]
[329087581,1718094651478,-500.0,0.00022739,2]
[329087582,1718094651488,-502.57132045,0.00022739,2]
[329087583,1718094651498,-500.0,0.00022739,2]
[329087584,1718094651508,-500.0,0.00022739,2]
[329087585,1718094651518,-500.0,0.00022739,2]
[329087586,1718094651528,-2456.5,0.00022739,2]
[329087587,1718094651538,-500.0,0.00022739,2]
[329087588,1718094651548,-400.0,0.00022739,2]
[329087589,1718094651558,-500.0,0.00022739,2]
[329087590,1718094651568,-500.0,0.00022739,2]
[329087591,1718094651578,-500.0,0.00022739,2]
[329087592,1718094651588,-500.0,0.00022739,2]
[329087593,1718094651598,-939.3,0.00022739,2]
[329087594,1718094651608,-500.0,0.00022739,2]
[329087595,1718094651619,-500.0,0.00022739,2]
[329087596,1718094651629,-500.0,0.00022739,2]
[329087597,1718094651639,-500.0,0.00022739,2]
[329087598,1718094651649,-500.0,0.00022739,2]
[329087599,1718094651660,-500.0,0.00022739,2]
[329087600,1718094651670,-500.0,0.00022739,2]
[329087601,1718094651680,-500.0,0.00022739,2]
[329087602,1718094651690,-556.65,0.00022739,2]
[329087603,1718094651700,-500.0,0.00022739,2]
[329087604,1718094651710,-500.0,0.00022739,2]
[329087605,1718094651720,-507.40126218,0.00022739,2]
[329087606,1718094651730,-500.0,0.00022739,2]
[329087607,1718094651740,-508.44201598,0.00022739,2]
[329087608,1718094651750,-1556.25,0.00022739,2]
[329087609,1718094651760,-500.0,0.00022739,2]
[329087610,1718094651770,-500.0,0.00022739,2]
[329087611,1718094651780,-500.0,0.00022739,2]
[329087612,1718094651790,-500.0,0.00022739,2]
[329087613,1718094651800,-500.0,0.00022739,2]
[329087614,1718094651811,-542.158767,0.00022778,2]
[329087615,1718094651821,-169.39303,0.00022778,2]
[329087616,1718094651831,-623.408381,0.00022778,2]
[329087617,1718094651841,-433.853933,0.00022778,2]
[329087618,1718094651852,-498.874011,0.00022778,2]
[329087619,1718094651863,-433.853932,0.00022778,2]
[329087620,1718094651873,-498.874011,0.00022778,2]
[329087621,1718094651884,-1079.8,0.0002281,3]
[329087622,1718094651894,-4239.70515949,0.00022848,2]
[329087623,1718094651904,-151.0,0.00022926,3]
[329087624,1718094651914,-166.666666,0.00022944,2]
[329087625,1718094651924,-500.0,0.00022971,2]
[329087626,1718094651935,-500.0,0.00022999,2]
[329087627,1718094651945,-500.0,0.00022999,2]
[329087628,1718094651956,-242.72372533,0.00022999,2]
[329087629,1718094651966,-1000.0,0.00023,2]
[329087630,1718094651977,-2913.10735633,0.00023,10]
[329087631,1718094651987,-500.0,0.00023012,2]
[329087632,1718094651997,-1637.82,0.00023012,2]
[329087633,1718094652007,-500.0,0.00023012,2]
[329087634,1718094652018,-309.09284422,0.00023012,2]
[329087635,1718094652028,-500.0,0.00023013,2]
[329087636,1718094652038,-500.0,0.00023013,2]
[329087637,1718094652048,-500.0,0.00023013,2]
[329087638,1718094652058,-500.0,0.00023013,2]
[329087639,1718094652068,-513.89323981,0.00023013,2]
[329087640,1718094652079,-500.0,0.00023013,2]
[329087641,1718094652092,-500.0,0.00023013,2]
[329087642,1718094652102,-517.81160985,0.00023013,2]
[329087643,1718094652114,-507.73075624,0.00023013,2]
[329087644,1718094652124,-500.0,0.00023013,2]
[329087645,1718094652134,-500.0,0.00023013,2]
[329087646,1718094652145,-508.59127026,0.00023013,2]
[329087647,1718094652155,-500.0,0.00023013,2]
[329087648,1718094652168,-500.0,0.00023013,2]
[329087649,1718094652179,-500.0,0.00023013,2]
[329087650,1718094652192,-500.0,0.00023013,2]
[329087651,1718094652204,-298.05896532,0.00023013,2]
[329087652,1718094652214,-165.22203798,0.00023013,2]
[329087653,1718094652224,-513.01928702,0.00023013,2]
[329087654,1718094652234,-500.0,0.00023013,2]
[329087655,1718094652244,-500.0,0.00023013,2]
[329087656,1718094652254,-500.0,0.00023013,2]
[329087657,1718094652265,-209.30122372,0.00023013,2]
[329087658,1718094652277,-500.0,0.00023013,2]
[329087659,1718094652289,-500.0,0.00023013,2]
[329087660,1718094652300,-500.0,0.00023013,2]
[329087661,1718094652311,-500.0,0.00023013,2]
[329087662,1718094652322,-513.4513165,0.00023013,2]
[329087663,1718094652332,-500.0,0.00023013,2]
[329087664,1718094652342,-500.0,0.00023013,2]
[329087665,1718094652352,-500.0,0.00023013,2]
[329087666,1718094652363,-500.0,0.00023013,2]
[329087667,1718094652373,-1191.0,0.00023013,2]
[329087668,1718094652384,-523.6063463,0.00023013,2]
[329087669,1718094652394,-1250.16,0.00023013,2]
[329087670,1718094652405,-155.845432,0.00023013,2]
[329087671,1718094652416,-155.845432,0.00023013,2]
[329087672,1718094652426,-545.31942705,0.00023013,2]
[329087673,1718094652436,-500.0,0.00023013,2]
[329087674,1718094652447,-500.0,0.00023013,2]
[329087675,1718094652457,-675.13,0.00023013,2]
[329087676,1718094652469,-500.0,0.00023013,2]
[329087677,1718094652479,-500.0,0.00023013,2]
[329087678,1718094652489,-500.0,0.00023013,2]
[329087679,1718094652499,-646.53,0.00023013,2]
[329087680,1718094652511,-500.0,0.00023013,2]
[329087681,1718094652523,-500.0,0.00023013,2]
[329087682,1718094652533,-500.0,0.00023013,2]
[329087683,1718094652544,-500.0,0.00023013,2]
[329087684,1718094652555,-506.11720859,0.00023013,2]
[329087685,1718094652565,-471.00300013,0.00023013,2]
[329087686,1718094652576,-500.0,0.00023013,2]
[329087687,1718094652586,-500.0,0.00023013,2]
[329087688,1718094652599,-500.0,0.00023013,2]
[329087689,1718094652609,-500.0,0.00023013,2]
[329087690,1718094652620,-2638.79,0.00023013,2]
[329087691,1718094652703,-500.0,0.00023013,2]
[329087693,1718094652724,-16164.8,0.00023013,2]
[329087696,1718094652734,-500.0,0.00023013,2]
[329087699,1718094652745,-500.0,0.00023013,2]
[329087702,1718094652755,-500.0,0.00023013,2]
[329087704,1718094652766,-1776.7,0.00023013,2]
[329087706,1718094652776,-500.0,0.00023013,2]
[329087707,1718094652787,-718.31,0.00023013,2]
[329087709,1718094652798,-500.0,0.00023013,2]
[329087711,1718094652808,-500.0,0.00023013,2]
[329087713,1718094652818,-1835.48,0.00023013,2]
[329087715,1718094652827,-500.0,0.00023013,2]
[329087717,1718094652837,-500.0,0.00023013,2]
[329087718,1718094652848,-500.0,0.00023013,2]
[329087719,1718094652858,-500.0,0.00023013,2]
[329087720,1718094652869,-500.0,0.00023013,2]
[329087721,1718094652879,-500.0,0.00023013,2]
[329087722,1718094652889,-500.0,0.00023013,2]
[329087723,1718094652898,-2456.5,0.00023013,2]
[329087724,1718094652908,-500.0,0.00023013,2]
[329087726,1718094652918,-500.0,0.00023013,2]
[329087728,1718094652928,-500.0,0.00023013,2]
[329087729,1718094652938,-500.0,0.00023013,2]
[329087730,1718094652950,-939.3,0.00023013,2]
[329087731,1718094652960,-500.0,0.00023013,2]
[329087732,1718094652971,-500.0,0.00023013,2]
[329087734,1718094652982,-500.0,0.00023013,2]
[329087736,1718094652993,-500.0,0.00023013,2]
[329087737,1718094653003,-504.98197669,0.00023013,2]
[329087738,1718094653014,-367.67609752,0.00023013,2]
[329087739,1718094653025,-500.0,0.00023013,2]
[329087740,1718094653035,-500.0,0.00023013,2]
[329087741,1718094653046,-500.0,0.00023013,2]
[329087742,1718094653056,-500.0,0.00023013,2]
[329087743,1718094653067,-500.0,0.00023013,2]
[329087744,1718094653078,-1556.25,0.00023013,2]
[329087745,1718094653088,-500.0,0.00023013,2]
[329087746,1718094653103,-500.0,0.00023013,2]
[329087747,1718094653114,-500.0,0.00023013,2]
[329087748,1718094653126,-309.36720837,0.00023013,2]
[329087749,1718094653138,-542.158767,0.00023063,2]
[329087750,1718094653149,-623.408381,0.00023063,2]
[329087751,1718094653159,-433.853933,0.00023063,2]
[329087752,1718094653171,-498.874011,0.00023063,2]
[329087753,1718094653182,-433.853932,0.00023063,2]
[329087754,1718094653199,-498.874011,0.00023063,2]
[329087755,1718094653210,-500.0,0.00023107,7]
[329087756,1718094653221,-500.0,0.00023107,7]
[329087757,1718094653232,-500.0,0.00023107,7]
[329087758,1718094653242,-500.0,0.00023107,7]
[329087759,1718094653253,-500.0,0.00023107,7]
[329087760,1718094653264,-343.72,0.00023107,7]
[329087761,1718094653275,-500.0,0.00023254,2]
[329087762,1718094653285,-500.0,0.00023254,2]
[329087763,1718094653296,-500.0,0.00023255,2]
[329087764,1718094653306,-500.0,0.00023255,2]
[329087765,1718094653316,-500.0,0.00023255,2]
[329087766,1718094653326,-500.0,0.00023255,2]
[329087767,1718094653336,-500.55049908,0.00023255,2]
[329087768,1718094653345,-500.0,0.00023255,2]
[329087769,1718094653356,-526.76283108,0.00023255,2]
[329087770,1718094653371,-500.6068576,0.00023255,2]
[329087771,1718094653381,-500.0,0.00023255,4]
[329087772,1718094653392,-503.1844252,0.00023255,2]
[329087773,1718094653402,-502.17842959,0.00023255,2]
[329087774,1718094653412,-500.0,0.00023255,2]
[329087775,1718094653421,-500.0,0.00023255,2]
[329087776,1718094653432,-500.0,0.00023255,2]
[329087777,1718094653443,-500.0,0.00023255,2]
[329087778,1718094653453,-500.0,0.00023255,2]
[329087779,1718094653463,-500.0,0.00023255,2]
[329087780,1718094653474,-500.0,0.00023255,2]
[329087781,1718094653484,-500.0,0.00023255,2]
[329087782,1718094653496,-500.0,0.00023255,2]
[329087783,1718094653506,-500.48581395,0.00023255,2]
[329087784,1718094653516,-504.90397001,0.00023255,2]
[329087785,1718094653527,-505.96727161,0.00023255,2]
[329087786,1718094653538,-500.0,0.00023255,2]
[329087788,1718094653548,-500.0,0.00023255,2]
[329087789,1718094653558,-500.0,0.00023255,2]
[329087791,1718094653568,-500.0,0.00023255,2]
[329087793,1718094653579,-500.0,0.00023255,2]
[329087794,1718094653589,-500.0,0.00023255,2]
[329087796,1718094653599,-500.0,0.00023255,2]
[329087797,1718094653610,-501.39424638,0.00023255,2]
[329087798,1718094653625,-500.0,0.00023255,2]
[329087799,1718094653636,-268.75111322,0.00023255,2]
[329087800,1718094653646,-502.00397062,0.00023255,2]
[329087801,1718094653657,-500.09875197,0.00023255,2]
[329087802,1718094653666,-500.0,0.00023255,2]
[329087803,1718094653676,-519.49438458,0.00023255,2]
[329087804,1718094653686,-500.8717857,0.00023255,2]
[329087805,1718094653696,-500.0,0.00023255,2]
[329087806,1718094653706,-575.82472491,0.00023255,2]
[329087807,1718094653716,-180.7908262,0.00023255,2]
[329087808,1718094653726,-500.0,0.00023255,2]
[329087809,1718094653736,-502.27060133,0.00023255,2]
[329087810,1718094653746,-364.69045059,0.00023255,2]
[329087811,1718094653756,-500.0,0.00023255,2]
[329087812,1718094653766,-500.0,0.00023255,2]
[329087813,1718094653777,-500.0,0.00023255,2]
[329087814,1718094653786,-500.0,0.00023255,2]
[329087815,1718094653796,-509.00200849,0.00023255,2]
[329087816,1718094653807,-505.48884414,0.00023255,2]
[329087817,1718094653817,-500.0,0.00023255,2]
[329087818,1718094653827,-500.0,0.00023255,2]
[329087819,1718094653838,-528.51206667,0.00023255,2]
[329087820,1718094653849,-500.0,0.00023255,2]
[329087821,1718094653860,-500.0,0.00023255,2]
[329087822,1718094653873,-285.89083862,0.00023255,2]
[329087823,1718094653884,-500.0,0.00023255,2]
[329087824,1718094653893,-503.40066937,0.00023255,2]
[329087825,1718094653903,-312.26426065,0.00023255,2]
[329087826,1718094653914,-506.32759368,0.00023255,2]
[329087827,1718094653924,-647.0,0.00023255,2]
[329087828,1718094653935,-505.21495529,0.00023255,2]
[329087829,1718094653944,-503.785688,0.00023255,2]
[329087830,1718094653954,-504.29842193,0.00023255,2]
[329087832,1718094653964,-500.0,0.00023255,2]
[329087834,1718094653973,-509.61278591,0.00023255,2]
[329087835,1718094653983,-500.0,0.00023255,2]
[329087836,1718094653993,-508.86402537,0.00023255,2]
[329087837,1718094654005,-503.43438394,0.00023255,2]
[329087838,1718094654015,-506.84725216,0.00023255,2]
[329087839,1718094654024,-507.83060781,0.00023255,2]
[329087840,1718094654033,-500.0,0.00023255,2]
[329087841,1718094654043,-500.0,0.00023255,2]
[329087842,1718094654052,-525.03726627,0.00023255,2]
[329087843,1718094654061,-500.0,0.00023255,2]
[329087844,1718094654071,-523.64325891,0.00023255,2]
[329087845,1718094654080,-500.0,0.00023255,2]
[329087846,1718094654091,-526.47922446,0.00023255,2]
[329087847,1718094654103,-500.0,0.00023255,2]
[329087848,1718094654113,-500.0,0.00023255,2]
[329087849,1718094654124,-500.0,0.00023255,2]
[329087850,1718094654134,-500.93578537,0.00023255,2]
[329087851,1718094654143,-500.0,0.00023255,2]
[329087852,1718094654152,-500.0,0.00023255,2]
[329087853,1718094654161,-500.0,0.00023255,2]
[329087854,1718094654173,-505.09307229,0.00023255,2]
[329087855,1718094654182,-500.0,0.00023255,2]
[329087856,1718094654194,-505.82639184,0.00023255,2]
[329087857,1718094654205,-505.54806492,0.00023255,2]
[329087858,1718094654214,-500.0,0.00023255,2]
[329087859,1718094654224,-500.0,0.00023255,2]